bitfinex-derivatives/quotes_ETHF0:USTF0_20251021
["timestamp","ask_amount","ask_price","bid_price","bid_amount"]
[1761081259338,4.01114,3963.0,3962.9,0.2775]
[1761081259544,3.2078,3963.0,3962.9,0.7273]
[1761081259946,3.2078,3963.0,3962.9,1.18135]
[1761081260142,3.21042355,3963.0,3962.9,1.18135]
[1761081260348,4.15002355,3963.0,3962.9,0.4498]
[1761081260740,4.15002355,3963.0,3962.9,0.7273]
[1761081261050,3.92832355,3963.0,3962.9,0.7273]
[1761081261757,0.35192355,3963.0,3962.9,0.7273]
[1761081262346,0.35192355,3963.0,3962.9,1.18135]
[1761081262749,0.35192355,3963.0,3962.9,0.7273]
[1761081263147,0.35192355,3963.0,3962.9,1.18135]
[1761081264750,0.00262355,3963.0,3962.9,1.18135]
[1761081274266,0.34322355,3963.0,3962.9,1.18135]
[1761081275870,0.2182,3963.5,3963.4,1.21059]
[1761081276058,0.2182,3963.5,3963.4,13.37539]
[1761081276258,0.90163,3963.9,3963.8,0.2175]
[1761081276458,3.2078,3964.3,3963.8,9.7136]
[1761081276761,0.2182,3964.1,3964.0,0.7566]
[1761081276960,0.2182,3964.1,3964.0,1.34182]
[1761081277166,3.42840875,3964.3,3964.1,0.77701]
[1761081277462,3.65790875,3964.3,3964.2,10.1665]
[1761081277655,3.21020875,3964.3,3964.2,10.1665]
[1761081278855,3.21020875,3964.3,3964.2,9.7126]
[1761081279262,3.88229875,3964.3,3964.2,9.7126]
[1761081279965,3.42840875,3964.3,3964.2,9.7126]
[1761081280366,0.22060875,3964.3,3964.2,9.7126]
[1761081281169,0.90399875,3964.3,3964.2,9.7126]
[1761081283375,0.90399875,3964.3,3964.2,10.1665]
[1761081283376,0.45010875,3964.3,3964.2,10.1665]
[1761081285767,0.45010875,3964.3,3964.2,9.7126]
[1761081286659,0.22060875,3964.3,3964.2,10.1665]
[1761081287668,0.90399875,3964.3,3964.2,9.7126]
[1761081287871,0.90399875,3964.3,3964.2,9.4966]
[1761081288069,0.45629875,3964.3,3964.2,9.7126]
[1761081289164,0.00240875,3964.3,3964.2,10.1665]
[1761081289671,0.00240875,3964.3,3964.2,0.7566]
[1761081289672,0.90399875,3964.3,3964.2,0.7566]
[1761081290874,1.23509875,3964.3,3964.2,0.7566]
[1761081291662,0.78120875,3964.3,3964.2,9.7106]
[1761081292277,1.23509875,3964.3,3964.2,9.7106]
[1761081292467,0.45629875,3964.3,3964.2,9.7106]
[1761081292673,0.00240875,3964.3,3964.2,9.7106]
[1761081292874,0.02240875,3964.3,3964.2,9.7106]
[1761081293675,0.02240875,3964.3,3964.2,10.1645]
[1761081296579,0.57220875,3964.3,3964.2,10.1645]
[1761081298387,0.35350875,3964.3,3964.2,11.51691083]
[1761081299178,0.35350875,3964.3,3964.2,11.06301083]
[1761081299477,1.02609875,3964.3,3964.2,11.06301083]
[1761081299679,0.57220875,3964.3,3964.2,9.7106]
[1761081300484,0.02240875,3964.3,3964.2,10.1645]
[1761081301383,0.02240875,3964.3,3964.2,16.51691083]
[1761081301678,0.02240875,3964.3,3964.2,15.1645]
[1761081302076,3.2078,3965.2,3965.1,0.8098]
[1761081302278,3.2078,3965.2,3965.1,9.7628]
[1761081302876,3.7576,3965.2,3965.1,9.7628]
[1761081303075,3.75940788,3965.2,3965.1,9.76537939]
[1761081303580,4.21318788,3965.2,3965.1,9.76537939]
[1761081303984,3.75940788,3965.2,3965.1,9.76537939]
[1761081304881,0.55160788,3965.2,3965.1,9.76537939]
[1761081305081,0.55160788,3965.2,3965.1,10.21916939]
[1761081305887,0.55160788,3965.2,3965.1,9.76537939]
[1761081306879,0.22050788,3965.2,3965.1,9.76537939]
[1761081307377,0.55160788,3965.2,3965.1,9.76537939]
[1761081307585,0.00180788,3965.2,3965.1,18.42697939]
[1761081307788,3.2078,3966.1,3966.0,0.9379]
[1761081307981,3.2078,3966.1,3966.0,9.8899]
[1761081308287,0.2187,3966.5,3966.2,0.4632]
[1761081308587,0.2187,3966.5,3966.4,0.8098]
[1761081308588,0.5498,3966.5,3966.4,0.8098]
[1761081308787,0.55167863,3966.5,3966.4,0.8098]
[1761081309087,1.22591863,3966.5,3966.4,0.8098]
[1761081309681,0.3455,3966.0,3965.5,3.3359]
[1761081309991,1.2241,3965.9,3965.8,0.4632]
[1761081310287,1.22414,3965.6,3965.5,0.2312]
[1761081310480,1.22414,3965.6,3965.5,9.1822]
[1761081310877,1.22414,3965.6,3965.5,8.951]
[1761081311378,1.22418,3965.2,3965.1,0.00257939]
[1761081312784,6.22418,3965.2,3965.1,0.00257939]
[1761081313091,6.78833816,3965.2,3965.1,0.00257939]
[1761081313482,1.22428,3964.4,3964.3,8.951]
[1761081314482,1.22428,3964.4,3964.3,8.95315184]
[1761081314791,0.8972,3963.5,3963.4,0.2312]
[1761081315089,0.8972,3963.5,3963.4,9.1832]
[1761081315595,1.22442,3963.1,3963.0,3.439]
[1761081315887,1.22708195,3963.1,3963.0,0.23399966]
[1761081316088,1.22708195,3963.1,3962.0,0.1281]
[1761081316089,0.2187,3962.3,3962.2,1.34881014]
[1761081316281,1.2246,3961.6,3961.5,9.1902]
[1761081316682,1.2246,3961.6,3961.5,9.5368]
[1761081316994,1.2246,3961.6,3961.5,8.959]
[1761081317291,1.2246,3961.6,3961.5,8.96118963]
[1761081318690,1.2246,3961.6,3961.5,9.19238963]
[1761081321088,1.2246,3961.6,3961.5,9.53308963]
[1761081321281,1.2246,3961.6,3961.5,9.75848963]
[1761081321694,4.11048,3961.8,3961.7,0.2233]
[1761081321992,0.9027,3961.6,3961.5,0.00218963]
[1761081322191,1.2527,3961.6,3961.5,0.00218963]
[1761081322391,0.7985,3961.0,3960.9,0.564]
[1761081322792,0.9383,3961.0,3960.9,0.7894]
[1761081323596,0.7985,3961.0,3960.9,0.79180549]
[1761081324394,0.2243,3961.0,3960.9,0.79180549]
[1761081326493,0.5743,3961.2,3961.1,0.4487]
[1761081326798,0.5743,3961.2,3961.1,0.7894]
[1761081326989,0.7985,3961.2,3961.1,0.7894]
[1761081332902,1.25274,3961.2,3961.1,0.7894]
[1761081334604,0.7985,3961.2,3961.1,1.24365]
[1761081334907,0.7985,3961.2,3961.1,0.7894]
[1761081335103,3.7821,3961.4,3961.2,0.3407]
[1761081335305,3.7821,3961.4,3961.3,0.7894]
[1761081335515,3.4321,3961.4,3961.3,1.24363]
[1761081335906,3.2078,3961.4,3961.3,1.24363]
[1761081336905,4.46052,3961.4,3961.3,0.7894]
[1761081337400,4.46052,3961.4,3961.3,0.4487]
[1761081337600,4.46052,3961.4,3961.3,0.2233]
[1761081341104,0.1398,3961.0,3960.9,0.00240549]
[1761081341308,1.39256,3961.0,3960.9,0.00240549]
[1761081342009,1.39256,3961.0,3958.8,3.2078]
[1761081342010,0.1398,3959.0,3958.8,3.2078]
[1761081342199,0.35,3958.4,3958.3,0.2254]
[1761081342505,0.7985,3958.1,3958.0,3.5485]
[1761081342707,0.7985,3958.1,3958.0,0.2233]
[1761081342902,0.80080027,3958.1,3958.0,0.2264527]
[1761081343212,0.00230027,3958.1,3958.0,0.9203527]
[1761081343612,0.00230027,3958.1,3958.0,6.3749627]
[1761081344912,0.00230027,3958.1,3958.0,15.3569627]
[1761081345814,0.02230027,3958.1,3958.0,15.3569627]
[1761081346603,0.47080027,3958.1,3958.0,0.4577627]
[1761081346813,0.82080027,3958.1,3958.0,0.2264527]
[1761081347514,0.94441,3958.0,3957.8,0.02526656]
[1761081347710,0.7985,3957.9,3957.8,0.02526656]
[1761081348210,0.7985,3957.9,3957.2,0.7894]
[1761081348211,0.2243,3957.3,3957.2,0.7894]
[1761081348408,3.2078,3957.9,3957.1,3.41400721]
[1761081348409,4.23672,3957.9,3957.7,0.3407]
[1761081348710,3.6563,3957.9,3957.8,0.4487]
[1761081349216,4.0063,3957.9,3957.8,0.4487]
[1761081350710,4.0063,3957.9,3957.8,0.2233]
[1761081351403,0.7868,3957.8,3957.7,0.00219902]
[1761081351608,0.7868,3957.8,3957.7,0.23589902]
[1761081352315,0.7868,3957.8,3957.7,0.00219902]
[1761081352705,0.2273,3957.2,3957.1,0.2337]
[1761081352907,0.7868,3957.2,3957.1,0.2337]
[1761081353413,0.7868,3957.2,3957.1,0.7938]
[1761081353611,0.346,3957.2,3957.1,0.7938]
[1761081353910,0.7868,3957.2,3957.1,0.79687786]
[1761081354111,0.7868,3957.2,3957.1,0.58127786]
[1761081354502,0.7868,3957.2,3957.1,0.23677786]
[1761081355110,0.7868,3957.2,3957.1,0.79687786]
[1761081356418,0.7868,3957.2,3957.1,0.00307786]
[1761081356718,0.7868,3957.2,3957.1,0.79687786]
[1761081357018,0.346,3956.5,3956.2,0.3445]
[1761081357214,0.7868,3956.5,3956.4,0.3445]
[1761081357407,0.346,3956.4,3956.2,0.3445]
[1761081357614,0.7868,3956.4,3956.3,0.3445]
[1761081357910,0.7868,3956.4,3956.3,0.58075658]
[1761081358616,0.7868,3956.4,3956.3,0.79635658]
[1761081359311,3.4351,3956.8,3956.3,0.79635658]
[1761081359508,0.58538,3956.5,3956.3,0.00255658]
[1761081359726,3.9946,3956.4,3956.3,0.00255658]
[1761081363515,0.4408,3954.7,3954.6,0.2337]
[1761081363723,0.7868,3954.7,3954.6,0.7938]
[1761081364207,0.7868,3954.7,3954.2,9.4743]
[1761081364208,0.346,3954.6,3954.2,9.4743]
[1761081364410,0.7868,3954.3,3954.2,9.82187826]
[1761081364725,0.7868,3954.3,3954.2,9.47737826]
[1761081365619,0.7868,3954.3,3954.2,9.82187826]
[1761081367417,0.00207325,3954.6,3954.5,0.934]
[1761081367622,0.57537325,3954.6,3954.5,0.7938]
[1761081367916,0.7868,3954.3,3954.2,12.46957826]
[1761081368116,0.7868,3954.3,3954.2,9.02807826]
[1761081370723,0.7868,3954.3,3954.2,0.00307826]
[1761081372225,0.7868,3954.3,3954.2,0.23677826]
[1761081372927,0.7868,3954.3,3954.2,0.79687826]
[1761081373126,3.2078,3954.4,3954.3,0.3445]
[1761081373435,3.9946,3954.4,3954.3,0.7938]
[1761081373920,0.346,3954.3,3954.2,0.00307826]
[1761081374120,4.10362,3954.4,3953.6,0.5782]
[1761081374121,0.7868,3953.7,3953.6,0.5782]
[1761081374432,0.7868,3953.7,3953.6,0.2337]
[1761081374629,0.7868,3953.7,3953.6,0.7938]
[1761081375022,0.7868,3953.7,3953.6,1.25149571]
[1761081375534,0.7868,3953.7,3953.6,0.79638571]
[1761081376326,4.44963,3954.3,3954.2,0.7938]
[1761081376931,0.7868,3954.3,3954.2,0.7938]
[1761081377429,0.34807325,3954.6,3954.2,1.24885]
[1761081377633,0.34807325,3954.6,3954.5,0.7938]
[1761081377634,1.24387325,3954.6,3954.5,0.7938]
[1761081378031,0.78887325,3954.6,3954.5,0.7938]
[1761081378430,1.24387325,3954.6,3954.5,0.7938]
[1761081380132,0.78887325,3954.6,3954.5,0.7938]
[1761081380329,0.78887325,3954.6,3954.5,1.24881]
[1761081380638,0.00207325,3954.6,3954.5,1.37931]
[1761081380937,0.00207325,3954.6,3954.5,10.42331]
[1761081381725,0.00207325,3954.6,3954.5,9.9683]
[1761081381930,0.02207325,3954.6,3954.5,9.9683]
[1761081382234,0.02207325,3954.6,3954.5,10.42331]
[1761081383430,0.02207325,3954.6,3954.5,9.9683]
[1761081384339,0.02207325,3954.6,3954.5,10.42331]
[1761081384731,0.1348,3954.5,3954.2,0.5422]
[1761081384933,0.7723,3954.1,3954.0,6.3975]
[1761081385237,0.99881,3954.5,3954.4,0.7565]
[1761081385438,1.36211,3954.5,3954.4,0.4398]
[1761081386535,1.36211,3954.5,3954.4,0.2255]
[1761081386738,1.22735,3954.2,3954.1,0.5422]
[1761081386938,1.22735,3954.2,3954.1,0.7565]
[1761081387140,0.1348,3954.5,3954.0,5.8665]
[1761081387141,1.22736,3954.1,3954.0,5.8665]
[1761081387332,1.22736,3954.1,3954.0,6.3975]
[1761081387537,1.22736,3954.1,3954.0,6.0808]
[1761081387738,1.22736,3954.1,3954.0,6.3975]
[1761081389142,0.3205,3954.3,3954.0,6.66587]
[1761081389339,0.7723,3954.3,3954.2,0.7565]
[1761081389838,0.7723,3954.3,3954.2,0.531]
[1761081390037,1.22736,3954.1,3954.0,6.1832]
[1761081390243,0.7723,3954.1,3954.0,6.3975]
[1761081390437,0.7723,3954.1,3954.0,6.5275]
[1761081391245,0.2233,3954.1,3954.0,6.98257]
[1761081391947,0.5438,3954.1,3954.0,6.98257]
[1761081392338,1.6399,3954.4,3954.3,1.21153]
[1761081392638,0.02207325,3954.6,3954.5,1.34151]
[1761081392835,0.24537325,3954.6,3954.5,10.39051]
[1761081393035,0.02207325,3954.6,3954.5,10.39051]
[1761081394035,3.2078,3955.5,3955.3,0.4398]
[1761081394236,3.4311,3955.5,3955.4,0.7565]
[1761081394443,4.32278683,3955.5,3955.4,0.7565]
[1761081394640,0.7723,3954.4,3954.3,0.2255]
[1761081394847,1.22732,3954.4,3954.3,0.2255]
[1761081395048,1.22736,3954.1,3954.0,0.5422]
[1761081395341,0.91037,3954.0,3953.9,9.059]
[1761081395546,1.93356189,3954.0,3953.9,9.059]
[1761081395844,0.7756,3953.7,3953.6,0.00258571]
[1761081396146,1.79879189,3953.7,3953.6,0.00258571]
[1761081397244,0.4518,3952.7,3952.6,3.2078]
[1761081397444,0.4518,3952.7,3952.0,0.5422]
[1761081397445,0.7723,3952.1,3952.0,0.5422]
[1761081397645,0.5438,3952.4,3952.3,0.4398]
[1761081397845,0.2233,3952.4,3952.3,0.7565]
[1761081398034,3.2078,3952.9,3952.6,0.7565]
[1761081398035,0.5438,3952.7,3952.6,0.7565]
[1761081398234,1.1145423,3952.7,3952.6,0.75918843]
[1761081398441,0.2233,3952.7,3952.6,0.75918843]
[1761081398738,0.4553,3953.0,3952.6,0.75918843]
[1761081398739,0.3205,3952.9,3952.6,0.44248843]
[1761081398938,0.2233,3952.9,3952.8,0.2255]
[1761081399247,0.4518,3952.9,3952.8,0.2255]
[1761081399444,0.7723,3952.7,3952.6,0.00268843]
[1761081399748,0.7723,3951.7,3951.6,0.2255]
[1761081400046,0.7723,3951.7,3951.6,0.7565]
[1761081400244,1.22763,3951.7,3951.6,0.7565]
[1761081400443,0.77593,3950.9,3950.4,1.34881014]
[1761081400741,0.00324575,3950.9,3950.6,0.3167]
[1761081401251,0.32374575,3950.9,3950.6,0.3167]
[1761081401444,0.00324575,3950.9,3950.5,0.58767876]
[1761081401749,0.00324575,3950.9,3950.5,0.31890876]
[1761081402447,0.3205,3950.6,3950.5,0.00220876]
[1761081405244,0.32374575,3950.9,3950.6,0.3167]
[1761081405442,0.32374575,3950.9,3950.5,5.00220876]
[1761081405443,0.3205,3950.6,3950.5,0.00220876]
[1761081405642,3.5283,3950.6,3950.5,0.00220876]
[1761081408544,0.3205,3949.6,3949.1,0.3167]
[1761081408743,0.3205,3949.6,3949.3,0.3167]
[1761081409139,0.3205,3949.5,3948.9,3.2078]
[1761081409339,0.3205,3949.0,3948.7,0.3167]
[1761081409538,0.3205,3948.8,3948.4,11.8178]
[1761081409741,0.3205,3948.8,3948.5,0.3167]
[1761081409936,0.3205,3948.8,3948.5,0.13506579]
[1761081410248,0.3205,3948.8,3948.6,0.3167]
[1761081412237,0.79269,3948.7,3948.4,12.16155742]
[1761081412443,0.337,3948.5,3948.4,3.55155742]
[1761081412643,0.337,3948.5,3948.4,12.81257697]
[1761081413044,0.337,3948.5,3948.4,12.33865742]
[1761081413246,0.337,3948.5,3948.4,0.00285742]
[1761081415051,3.2078,3948.6,3948.5,0.3409]
[1761081415350,3.2078,3949.5,3949.3,0.3409]
[1761081415553,3.5448,3949.5,3949.3,0.3409]
[1761081415743,3.2078,3949.5,3949.3,0.3409]
[1761081416052,3.5448,3949.9,3949.6,0.3409]
[1761081416352,0.337,3949.7,3948.8,0.3409]
[1761081416541,0.337,3949.7,3949.1,0.45563]
[1761081416736,0.45557,3949.7,3949.1,0.3409]
[1761081416950,0.337,3949.0,3948.8,0.3409]
[1761081417356,0.337,3948.9,3948.8,0.3409]
[1761081417849,0.337,3948.9,3948.5,0.3409]
[1761081418048,0.337,3948.8,3948.5,0.3409]
[1761081418847,0.337,3949.2,3948.5,0.3409]
[1761081419052,0.337,3948.7,3948.4,0.34375742]
[1761081419551,0.45568,3948.7,3948.4,0.34375742]
[1761081419751,0.337,3948.6,3948.4,0.34375742]
[1761081419953,0.337,3948.9,3948.5,0.3409]
[1761081420149,0.1357,3949.2,3948.4,0.45856742]
[1761081420150,0.337,3948.8,3948.6,0.3409]
[1761081421353,0.337,3948.8,3948.7,0.3409]
[1761081421551,0.337,3949.1,3948.7,0.3409]
[1761081422144,0.337,3949.4,3948.7,0.3409]
[1761081422346,3.2078,3949.5,3948.7,0.3409]
[1761081422347,0.337,3949.1,3948.7,0.3409]
[1761081422544,0.337,3948.9,3948.7,0.3409]
[1761081423653,0.45566,3948.9,3948.7,0.3409]
[1761081423858,0.337,3948.8,3948.7,0.3409]
[1761081424151,3.2078,3949.5,3948.7,0.3409]
[1761081424354,0.337,3949.8,3949.3,0.3409]
[1761081424546,0.337,3949.8,3949.7,0.3409]
[1761081425150,3.2078,3949.9,3949.8,0.3409]
[1761081425349,3.2078,3949.9,3949.8,0.4742]
[1761081425550,3.2078,3949.9,3949.8,5.92975]
[1761081425753,0.337,3950.6,3950.2,0.7964]
[1761081426053,0.337,3950.6,3950.3,0.3409]
[1761081426248,3.2078,3950.8,3950.4,0.3409]
[1761081426454,3.5448,3950.8,3950.5,0.3409]
[1761081426956,0.00324575,3950.9,3950.7,0.3409]
[1761081427653,0.00324575,3950.9,3950.8,9.144]
[1761081427855,0.00324575,3950.9,3950.8,9.4849]
[1761081429356,3.2078,3951.7,3951.0,0.1333]
[1761081429651,3.2078,3952.2,3951.7,0.3409]
[1761081429857,0.337,3952.3,3952.0,0.3409]
[1761081430360,0.79229,3952.1,3952.0,0.00251477]
[1761081431856,0.337,3951.0,3950.9,0.3409]
[1761081432249,0.337,3951.0,3950.8,7.736]
[1761081432560,0.337,3951.0,3950.8,8.0769]
[1761081432759,0.337,3951.0,3950.9,0.3409]
[1761081434454,0.337,3950.9,3950.8,8.07879219]
[1761081435047,0.45538,3951.3,3950.9,0.3409]
[1761081435248,0.337,3951.8,3951.1,0.3409]
[1761081435849,0.337,3951.4,3951.1,0.3409]
[1761081436049,0.79237,3951.4,3951.1,0.3409]
[1761081436250,0.337,3951.3,3951.1,0.3409]
[1761081436757,0.79238,3951.3,3951.1,0.3409]
[1761081438460,0.337,3951.2,3951.1,0.3409]
[1761081439154,0.7685,3951.2,3951.1,0.5604]
[1761081439351,0.45543,3950.9,3950.8,7.95739219]
[1761081439557,1.02123,3950.9,3950.8,8.28539219]
[1761081439754,1.23373,3950.9,3950.8,8.28539219]
[1761081439954,1.23373,3950.9,3950.8,8.51079219]
[1761081440463,0.88688,3951.3,3951.2,0.5475]
[1761081440761,0.88688,3951.3,3951.2,0.2195]
[1761081440967,1.22448,3951.3,3951.2,0.2195]
[1761081441665,0.3376,3951.2,3950.9,0.5739]
[1761081441960,1.21881,3951.0,3950.9,0.7975]
[1761081442757,0.7634,3951.0,3950.9,0.7975]
[1761081442967,1.21875,3951.6,3951.5,0.5739]
[1761081443164,1.21875,3951.6,3951.5,9.7009]
[1761081443965,1.21875,3951.6,3951.5,9.9245]
[1761081444560,3.4191,3951.9,3951.5,9.582]
[1761081444868,3.2078,3951.9,3951.8,1.25282]
[1761081445062,3.2078,3951.9,3951.8,0.7975]
[1761081445762,3.2078,3951.9,3951.8,1.25282]
[1761081445967,3.2078,3951.9,3951.8,0.7975]
[1761081446364,3.66311,3951.9,3951.8,0.7975]
[1761081446562,4.21201,3951.9,3951.8,0.7975]
[1761081446758,1.00421,3951.9,3951.8,0.7975]
[1761081447165,0.5489,3951.9,3951.8,0.7975]
[1761081447360,0.4553,3952.1,3951.8,0.7975]
[1761081447567,0.6666,3952.0,3951.9,0.7975]
[1761081447761,0.00327227,3952.3,3952.2,0.7975]
[1761081447966,1.22193227,3952.3,3952.2,9.9205]
[1761081448171,1.22193227,3952.3,3952.2,9.123]
[1761081449760,0.7634,3951.2,3951.1,3.4392]
[1761081449955,0.2113,3951.5,3951.1,4.1182]
[1761081450173,1.00426,3951.5,3951.4,0.7975]
[1761081450362,1.21876,3951.5,3951.4,0.7975]
[1761081452065,1.00424,3951.7,3951.6,0.455]
[1761081452272,1.00424,3951.7,3951.6,0.7975]
[1761081452471,1.21874,3951.7,3951.6,0.7975]
[1761081452770,1.21874,3951.7,3951.6,0.455]
[1761081453872,1.21874,3951.7,3951.6,0.7975]
[1761081458067,0.7634,3951.7,3951.6,0.7975]
[1761081458277,0.66663,3951.7,3951.6,0.7975]
[1761081459669,0.45532,3951.8,3951.7,0.3425]
[1761081459972,3.7567,3952.2,3951.8,0.79782]
[1761081460173,4.42648,3952.2,3952.1,0.7975]
[1761081460374,1.349,3952.0,3951.9,9.109]
[1761081460775,1.349,3952.0,3951.9,9.3404]
[1761081461876,1.349,3952.0,3951.9,9.109]
[1761081463081,1.349,3952.0,3951.9,9.3404]
[1761081465576,1.2187,3952.0,3951.9,9.9065]
[1761081466879,1.349,3952.0,3951.9,9.9065]
[1761081469181,1.349,3952.0,3951.9,9.564]
[1761081469382,1.349,3952.0,3951.9,9.9065]
[1761081469582,1.2187,3952.0,3951.9,9.9065]
[1761081469983,0.4553,3952.0,3951.9,9.9065]
[1761081470484,1.2187,3952.0,3951.9,9.9065]
[1761081470981,1.3457,3952.0,3951.9,9.3404]
[1761081471179,1.3457,3952.0,3951.9,9.6775]
[1761081471788,1.3457,3952.0,3951.9,9.3404]
[1761081472085,1.92032985,3952.0,3951.9,9.3404]
[1761081472285,1.92032985,3952.0,3951.3,1.34881014]
[1761081472286,0.3347,3951.4,3951.3,1.34881014]
[1761081472473,1.25073,3950.9,3950.8,1.35070233]
[1761081472673,1.25073,3950.9,3950.8,0.21579219]
[1761081473280,1.25073,3950.9,3950.8,0.00189219]
[1761081473281,6.25073,3950.9,3950.8,0.00189219]
[1761081473486,6.82528254,3950.9,3950.8,0.00189219]
[1761081476485,6.82445311,3950.9,3950.8,0.00189219]
[1761081477186,6.25073,3950.9,3950.8,0.00189219]
[1761081479975,1.25073,3950.9,3950.8,0.00189219]
[1761081480181,0.5638,3951.3,3950.9,0.3371]
[1761081480381,3.2078,3951.4,3950.9,0.3371]
[1761081480382,1.01921,3951.0,3950.9,0.7738]
[1761081480883,1.25071,3951.0,3950.9,0.7738]
[1761081482691,0.68451,3951.0,3950.9,0.7738]
[1761081483381,0.45541,3951.0,3950.9,0.7738]
[1761081484486,1.01918,3951.3,3951.2,0.7738]
[1761081484684,0.45537,3951.4,3951.3,0.7738]
[1761081484888,0.68446,3951.6,3951.5,0.9077]
[1761081485090,1.01916,3951.6,3951.5,0.9077]
[1761081485283,0.68444,3951.6,3951.5,0.9077]
[1761081486085,0.2291,3951.6,3951.5,0.9077]
[1761081486386,1.25064,3951.6,3951.5,0.7738]
[1761081486988,0.2291,3951.6,3951.5,0.9077]
[1761081487189,0.45533,3951.7,3951.6,0.3371]
[1761081487398,0.45533,3951.7,3951.6,0.7738]
[1761081487696,1.01913,3951.7,3951.6,0.7738]
[1761081487893,0.2291,3951.7,3951.6,0.7738]
[1761081488095,0.68443,3951.7,3951.6,0.7738]
[1761081488293,1.25063,3951.7,3951.6,0.7738]
[1761081488995,0.45532,3951.8,3951.7,0.7738]
[1761081489199,1.25062,3951.8,3951.7,0.7738]
[1761081492299,0.68442,3951.8,3951.7,0.7738]
[1761081492499,1.01912,3951.8,3951.7,0.7738]
[1761081492801,1.85822,3951.8,3951.7,0.7738]
[1761081493507,1.25068,3951.3,3951.2,0.7738]
[1761081494598,0.8391,3951.8,3951.7,0.7738]
[1761081494599,1.52353,3951.8,3951.7,0.7738]
[1761081494803,1.29443,3951.8,3951.7,0.7738]
[1761081495005,0.8391,3951.8,3951.7,0.7738]
[1761081495904,1.85822,3951.8,3951.7,0.7738]
[1761081498304,1.25063,3951.7,3951.6,9.09]
[1761081499002,1.25063,3951.7,3951.6,9.3063]
[1761081499406,0.68622,3950.1,3950.0,1.80297481]
[1761081499594,0.3492,3949.4,3949.3,0.55]
[1761081499901,0.8086,3949.4,3949.3,0.7616]
[1761081500113,0.8086,3949.4,3949.3,9.8916]
[1761081500604,0.81078353,3949.4,3949.3,9.89451124]
[1761081504103,0.23288353,3949.4,3949.3,9.89451124]
[1761081506803,0.00218353,3949.4,3949.3,10.35012124]
[1761081507109,0.00218353,3949.4,3949.3,9.89451124]
[1761081507302,1.02948353,3949.4,3949.3,9.89451124]
[1761081507504,0.67928353,3949.4,3949.3,9.89451124]
[1761081507707,1.26278353,3949.4,3949.3,9.89451124]
[1761081509010,1.26278353,3949.4,3949.3,9.13291124]
[1761081509197,1.26278353,3949.4,3949.3,9.35091124]
[1761081509397,1.26278353,3949.4,3949.3,9.93041124]
[1761081512115,1.26278353,3949.4,3949.3,9.35091124]
[1761081512716,1.26278353,3949.4,3949.3,9.70071124]
[1761081512912,1.26278353,3949.4,3949.3,9.35091124]
[1761081513113,6.26278353,3949.4,3949.3,9.13291124]
[1761081513814,6.26278353,3949.4,3948.6,21.2935]
[1761081513815,1.26068,3948.7,3948.6,21.2935]
[1761081514011,1.26068,3948.7,3948.6,9.9095]
[1761081514216,1.26068,3948.7,3948.6,9.5597]
[1761081514810,1.26068,3948.7,3948.6,0.4502914]
[1761081515117,1.26068,3948.7,3948.6,6.5612914]
[1761081515308,1.26068,3948.7,3948.6,6.9110914]
[1761081517112,0.67928353,3949.4,3949.3,0.4477]
[1761081517417,1.02948353,3949.4,3949.3,0.7975]
[1761081517717,1.26278353,3949.4,3949.3,0.7975]
[1761081519312,0.45562,3949.2,3949.1,0.218]
[1761081519515,1.26062,3949.2,3949.1,0.218]
[1761081519712,1.26062,3949.2,3949.1,0.7975]
[1761081521717,4.46842,3949.2,3949.1,0.7975]
[1761081522106,3.88492,3949.2,3949.1,0.7975]
[1761081522307,0.45561,3949.3,3949.2,0.3498]
[1761081522518,0.45561,3949.3,3949.2,0.7975]
[1761081522716,0.00218353,3949.4,3949.3,1.25311]
[1761081522913,0.45551,3950.2,3950.1,0.5795]
[1761081523112,0.45551,3950.2,3950.1,0.7975]
[1761081524218,1.26367865,3950.2,3950.1,0.7975]
[1761081525124,0.80816865,3950.2,3950.1,0.7975]
[1761081525517,0.00316865,3950.2,3950.1,0.7975]
[1761081526917,0.3502,3950.8,3950.7,0.7975]
[1761081526918,0.45544,3950.8,3950.7,0.7975]
[1761081527222,0.45544,3950.8,3950.7,9.9195]
[1761081527416,3.2078,3950.9,3950.7,9.9195]
[1761081527623,3.2078,3950.9,3950.8,0.7975]
[1761081527819,1.02712,3951.0,3950.8,0.7975]
[1761081528026,1.02712,3951.0,3950.9,0.7975]
[1761081528027,1.02932722,3951.0,3950.9,0.7975]
[1761081528319,0.45761722,3951.0,3950.9,0.7975]
[1761081528519,0.67911722,3951.0,3950.9,0.7975]
[1761081528723,1.02931722,3951.0,3950.9,0.7975]
[1761081529326,0.45544,3950.8,3950.7,9.34]
[1761081529523,3.66324,3950.8,3950.7,9.9195]
[1761081530019,1.26044,3950.8,3950.7,9.9195]
[1761081530418,1.26044,3950.8,3949.9,3.2078]
[1761081530419,0.3502,3950.3,3949.9,3.2078]
[1761081530619,1.26057,3949.7,3949.6,0.218]
[1761081530922,0.45551,3950.2,3949.7,0.45556]
[1761081531126,0.5508,3950.3,3950.2,0.4398]
[1761081531519,0.784,3950.3,3950.2,0.7748]
[1761081533323,1.23949,3950.3,3950.2,0.7748]
[1761081534824,0.45563,3949.2,3949.0,0.335]
[1761081535036,0.233,3949.1,3949.0,0.9039]
[1761081535323,0.3178,3949.4,3949.0,0.9039]
[1761081535324,0.5508,3949.4,3949.3,0.7748]
[1761081535828,0.45557,3949.7,3949.6,0.7748]
[1761081536031,0.68857,3949.7,3949.6,0.7748]
[1761081536331,1.00637,3949.7,3949.6,0.7748]
[1761081537526,1.83977,3949.7,3949.6,0.7748]
[1761081538933,1.3842,3949.7,3949.6,0.7748]
[1761081539227,0.8334,3949.7,3949.6,0.7748]